bitfinex-derivatives/quotes_SOLF0:USTF0_20250518
["timestamp","ask_amount","ask_price","bid_price","bid_amount"]
[1747557604622,60.7,171.57,171.5,1.45752588]
[1747557604821,60.7,171.57,171.51,1.45752588]
[1747557605123,60.7,171.57,171.54,5.8275]
[1747557606428,60.7,171.57,171.56,5.827]
[1747557606927,60.7,171.57,171.55,5.8272]
[1747557607129,66.5464,171.58,171.55,5.8272]
[1747557607423,66.5464,171.58,171.51,1.4574554]
[1747557607424,60.7,171.61,171.52,62.15711309]
[1747557607629,60.7,171.62,171.53,1.45711309]
[1747557607829,121.4,171.62,171.54,1.45711309]
[1747557608023,10.86512791,171.67,171.55,1.45706379]
[1747557608024,646.55151966,171.64,171.55,1.45706379]
[1747557608326,249.95151966,171.64,171.56,66.0622553]
[1747557608515,249.95151966,171.64,171.62,5.8248]
[1747557609132,249.95151966,171.64,171.63,5.8246]
[1747557609534,249.95151966,171.64,171.56,64.6052]
[1747557609829,71.56512791,171.67,171.57,1.45681257]
[1747557610030,132.24512791,171.67,171.58,1.45678926]
[1747557610242,132.24512791,171.67,171.59,1.9103]
[1747557610539,71.56512791,171.67,171.59,1.9103]
[1747557610740,77.38852791,171.67,171.63,5.8244]
[1747557611136,60.7,171.67,171.59,1.9103]
[1747557612141,5.824,171.65,171.61,5.8251]
[1747557612642,5.8237,171.66,171.59,1.9103]
[1747557612843,60.7,171.67,171.59,1.9103]
[1747557613141,60.66,171.7,171.6,60.7]
[1747557613343,66.4825,171.7,171.6,60.7]
[1747557614136,60.7,171.71,171.6,60.7]
[1747557614437,60.66,171.72,171.62,5.00557684]
[1747557614644,189.15558015,171.74,171.69,5.8225]
[1747557614942,310.51558015,171.74,171.69,5.8225]
[1747557615136,249.85558015,171.74,171.69,5.8225]
[1747557615445,310.49558015,171.74,171.64,60.7]
[1747557615844,5.8222,171.71,171.64,60.7]
[1747557616042,5.8222,171.71,171.67,5.8232]
[1747557616441,5.8223,171.7,171.67,5.8232]
[1747557616743,5.8223,171.7,171.66,5.8234]
[1747557617145,5.8223,171.7,171.67,5.8232]
[1747557618335,310.49558015,171.74,171.63,3.7076]
[1747557618540,62.4374,171.73,171.61,60.68]
[1747557618947,62.4374,171.73,171.64,5.824]
[1747557619346,5.8232,171.68,171.65,5.8239]
[1747557619553,121.3,171.69,171.61,60.68]
[1747557619941,127.1227,171.69,171.65,5.8236]
[1747557620345,127.1227,171.69,171.61,60.68]
[1747557620547,127.1227,171.69,171.66,5.8234]
[1747557621647,121.3,171.69,171.66,5.8234]
[1747557622447,66.4819,171.72,171.68,5.8229]
[1747557622652,60.6,171.71,171.62,5.00557684]
[1747557622851,60.66,171.72,171.63,60.6]
[1747557623253,60.6,171.71,171.63,60.6]
[1747557623753,5.8224,171.7,171.63,60.6]
[1747557624152,5.8224,171.7,171.66,5.8234]
[1747557625051,5.8224,171.7,171.67,5.8232]
[1747557625546,5.8227,171.69,171.63,60.6]
[1747557625746,60.6,171.71,171.63,60.6]
[1747557626052,60.6,171.71,171.65,5.8238]
[1747557626350,5.8228,171.69,171.65,5.8238]
[1747557627353,5.823,171.68,171.64,5.8241]
[1747557627753,5.823,171.68,171.61,60.68]
[1747557627754,5.823,171.68,171.65,5.8239]
[1747557630351,5.8227,171.69,171.66,5.8236]
[1747557632053,5.823,171.68,171.65,5.8238]
[1747557633347,5.823,171.68,171.66,5.8236]
[1747557634755,5.8227,171.69,171.66,5.8236]
[1747557637154,5.8227,171.69,171.67,5.8233]
[1747557637459,60.66,171.72,171.61,60.68]
[1747557637659,60.54,171.71,171.61,60.68]
[1747557638160,60.54,171.71,171.62,1.4562447]
[1747557638360,60.54,171.71,171.68,5.8227]
[1747557639661,66.362,171.71,171.68,5.8227]
[1747557640361,60.54,171.71,171.69,5.8225]
[1747557640961,60.54,171.71,171.7,5.8222]
[1747557641361,66.3619,171.71,171.62,1.45623662]
[1747557641562,66.3619,171.71,171.68,5.8227]
[1747557642361,60.54,171.71,171.69,5.8226]
[1747557643065,66.362,171.71,171.68,5.8228]
[1747557644463,66.362,171.71,171.63,1.45625032]
[1747557644464,66.362,171.71,171.62,4.82260319]
[1747557644665,66.362,171.71,171.63,1.45624418]
[1747557644866,66.362,171.71,171.62,4.82260319]
[1747557645064,66.362,171.71,171.63,1.45624418]
[1747557645265,66.362,171.71,171.68,5.8227]
[1747557646364,60.54,171.71,171.62,4.82260319]
[1747557646864,5.8231,171.68,171.62,4.82260319]
[1747557647465,5.8231,171.68,171.65,5.8237]
[1747557648465,5.8231,171.68,171.66,5.8235]
[1747557648666,60.54,171.71,171.61,65.50260319]
[1747557648868,60.54,171.71,171.65,5.8237]
[1747557649167,5.8231,171.68,171.65,5.8237]
[1747557651863,5.8227,171.69,171.62,4.83533949]
[1747557652065,5.8227,171.69,171.63,1.45640118]
[1747557652266,5.8227,171.69,171.66,5.8234]
[1747557653366,5.8231,171.68,171.65,5.8238]
[1747557653569,60.54,171.71,171.63,4.83533949]
[1747557654071,5.8236,171.66,171.59,7.19584042]
[1747557654271,5.8236,171.66,171.6,1.45650327]
[1747557654467,5.8236,171.66,171.61,1.45650327]
[1747557654666,5.8236,171.66,171.63,5.8244]
[1747557654867,66.2834,171.67,171.59,7.19584042]
[1747557655066,66.2834,171.67,171.6,1.45652644]
[1747557655268,66.2834,171.67,171.64,5.824]
[1747557656568,60.46,171.67,171.65,5.8238]
[1747557657873,60.56,171.68,171.6,5.28554042]
[1747557658073,121.02,171.68,171.61,1.45646354]
[1747557658269,121.02,171.68,171.62,1.45646354]
[1747557658470,121.02,171.68,171.67,5.8233]
[1747557660369,60.44,171.69,171.67,5.8233]
[1747557661675,60.44,171.69,171.68,5.8229]
[1747557662373,60.44,171.69,171.67,5.8232]
[1747557664072,60.44,171.69,171.61,60.42]
[1747557664372,60.44,171.69,171.62,1.45646431]
[1747557664572,5.8231,171.68,171.65,5.8238]
[1747557665175,60.44,171.69,171.62,5.37485173]
[1747557665377,60.44,171.69,171.63,1.45646321]
[1747557665679,60.44,171.69,171.64,1.45646321]
[1747557665873,66.2627,171.69,171.66,5.8234]
[1747557666077,60.44,171.69,171.62,5.37485173]
[1747557666380,60.44,171.69,171.63,1.4563067]
[1747557666576,60.44,171.69,171.67,5.823]
[1747557666875,60.44,171.69,171.62,5.37485173]
[1747557667078,60.44,171.69,171.63,1.45627525]
[1747557667278,60.44,171.69,171.64,1.45627525]
[1747557667474,60.44,171.69,171.65,1.45628277]
[1747557667779,60.44,171.69,171.67,5.823]
[1747557668267,60.56,171.7,171.63,4.86873083]
[1747557668467,60.4,171.69,171.64,1.45629317]
[1747557668675,60.4,171.69,171.63,4.86873083]
[1747557668877,60.4,171.69,171.64,6.32525441]
[1747557669178,60.4,171.69,171.65,1.45647798]
[1747557669376,60.4,171.69,171.64,10.69293083]
[1747557669578,5.8236,171.67,171.64,4.86873083]
[1747557669978,60.4,171.69,171.64,4.86873083]
[1747557670574,60.4,171.69,171.64,10.69293083]
[1747557670980,5.8236,171.67,171.64,10.69293083]
[1747557671379,5.8236,171.67,171.64,5.8242]
[1747557672673,60.4,171.69,171.6,5.37485173]
[1747557672869,60.4,171.69,171.61,1.45652245]
[1747557673070,60.4,171.69,171.62,6.32788494]
[1747557673373,60.4,171.69,171.63,1.45635547]
[1747557673573,60.4,171.69,171.64,1.45635547]
[1747557673776,60.4,171.69,171.65,1.45635547]
[1747557673975,60.4,171.69,171.66,1.45635547]
[1747557674167,60.56,171.7,171.62,4.87152947]
[1747557674371,120.94,171.7,171.63,1.45637591]
[1747557674576,5.8228,171.69,171.64,1.45637591]
[1747557674881,5.8228,171.69,171.65,1.45637591]
[1747557675076,5.8228,171.69,171.66,7.27977591]
[1747557675277,5.8228,171.69,171.66,5.8234]
[1747557676575,120.94,171.7,171.62,5.37485173]
[1747557676775,120.94,171.7,171.63,1.45640035]
[1747557676979,120.94,171.7,171.64,1.45640035]
[1747557677171,5.8234,171.67,171.65,1.45640035]
[1747557677372,5.8234,171.67,171.64,10.69775165]
[1747557677577,120.94,171.7,171.65,1.4564634]
[1747557677875,5.8236,171.66,171.64,4.87365165]
[1747557678077,5.8236,171.66,171.65,1.4564556]
[1747557678784,5.8236,171.66,171.64,4.87365165]
[1747557678981,5.8236,171.66,171.65,4.87365165]
[1747557680182,5.8236,171.66,171.63,5.8244]
[1747557680981,60.36,171.66,171.61,5.8251]
[1747557681180,120.8,171.66,171.62,1.45665429]
[1747557681378,120.8,171.66,171.61,5.8251]
[1747557681684,120.8,171.66,171.62,5.8249]
[1747557682689,5.8243,171.64,171.62,5.8249]
[1747557682888,120.8,171.66,171.63,5.8246]
[1747557683385,5.824,171.65,171.62,5.8248]
[1747557683584,120.8,171.66,171.59,7.28515173]
[1747557683785,120.8,171.66,171.6,1.45671008]
[1747557684082,120.8,171.66,171.61,1.45671008]
[1747557684283,120.8,171.66,171.58,64.4035]
[1747557684478,5.8252,171.62,171.59,7.28268156]
[1747557684785,120.8,171.66,171.59,5.8258]
[1747557684991,120.8,171.66,171.58,5.8261]
[1747557685178,120.8,171.66,171.57,5.37485173]
[1747557685486,120.8,171.66,171.58,1.45695672]
[1747557685784,5.8245,171.64,171.61,5.825]
[1747557685976,120.8,171.66,171.61,5.825]
[1747557687282,5.8247,171.63,171.61,5.825]
[1747557687483,5.8247,171.63,171.6,5.8255]
[1747557688487,5.825,171.62,171.59,5.8259]
[1747557688787,60.34,171.62,171.55,65.81485173]
[1747557688989,5.8255,171.61,171.57,5.8263]
[1747557689689,120.78,171.62,171.56,5.8268]
[1747557689882,120.78,171.62,171.55,5.37485173]
[1747557690081,120.78,171.62,171.56,1.45710635]
[1747557690282,120.78,171.62,171.55,5.37485173]
[1747557691193,5.8257,171.6,171.57,5.8265]
[1747557691390,120.78,171.62,171.55,5.37485173]
[1747557691591,120.78,171.62,171.56,1.45703792]
[1747557691792,126.6052,171.62,171.58,5.8261]
[1747557692489,5.8253,171.61,171.58,5.8261]
[1747557694088,5.8253,171.61,171.59,5.826]
[1747557694691,5.8253,171.61,171.58,5.8262]
[1747557694890,5.8253,171.61,171.56,4.85829913]
[1747557695392,5.8253,171.61,171.58,5.8261]
[1747557695594,5.8258,171.6,171.56,4.85829913]
[1747557695998,5.826,171.59,171.56,4.85829913]
[1747557696294,5.826,171.59,171.54,1.9266]
[1747557696496,5.826,171.59,171.56,5.8268]
[1747557698096,125.61970303,171.58,171.49,11.12046897]
[1747557698297,60.32,171.57,171.49,11.12046897]
[1747557698689,5.8277,171.54,171.51,11.20335173]
[1747557698898,66.1277,171.54,171.51,11.20335173]
[1747557699099,60.3,171.54,171.51,11.20335173]
[1747557699801,60.3,171.54,171.52,5.8283]
[1747557700301,60.3,171.54,171.53,5.828]
[1747557701104,5.8262,171.59,171.49,3.954]
[1747557701300,60.3,171.56,171.49,3.954]
[1747557701703,60.3,171.56,171.55,5.8273]
[1747557703305,60.32,171.57,171.56,5.827]
[1747557703507,60.32,171.57,171.49,3.954]
[1747557703805,60.32,171.57,171.55,5.8273]
[1747557708907,60.3,171.58,171.49,64.234]
[1747557709111,60.3,171.58,171.49,69.23370303]
[1747557709509,60.3,171.58,171.56,5.8268]
[1747557709813,60.28,171.59,171.56,5.8268]
[1747557710207,66.1062,171.59,171.56,5.8268]
[1747557710406,60.28,171.59,171.56,5.8268]
[1747557711012,60.28,171.59,171.57,5.8266]
[1747557711313,60.28,171.59,171.5,4.84303737]
[1747557711512,60.28,171.59,171.5,65.18303737]
[1747557711711,66.106,171.59,171.56,5.8268]
[1747557711912,5.826,171.59,171.56,5.8268]
[1747557712113,66.086,171.59,171.56,5.8268]
[1747557714706,60.26,171.59,171.51,1.45730424]
[1747557715004,60.26,171.59,171.5,60.34]
[1747557715200,60.26,171.59,171.57,5.8265]
[1747557715805,5.8251,171.62,171.5,60.34]
[1747557716013,120.58,171.61,171.51,1.45709652]
[1747557716212,60.34,171.61,171.58,5.826]
[1747557716512,120.58,171.61,171.58,5.826]
[1747557717106,126.4055,171.61,171.58,5.826]
[1747557717708,5.8257,171.6,171.53,1.45707869]
[1747557717909,5.8257,171.6,171.52,1.9306]
[1747557718109,5.8257,171.6,171.53,1.45710237]
[1747557718310,5.8257,171.6,171.52,1.9306]
[1747557718610,5.8257,171.6,171.53,1.45710237]
[1747557718810,5.8261,171.59,171.52,1.9306]
[1747557719715,5.8261,171.59,171.56,5.8267]
[1747557721014,5.8261,171.59,171.53,1.45722865]
[1747557721015,5.8258,171.6,171.57,5.8266]
[1747557721809,5.8258,171.6,171.58,5.8262]
[1747557722512,4.99970303,171.64,171.59,5.8259]
[1747557722711,120.44,171.63,171.59,5.8259]
[1747557723110,5.8251,171.62,171.59,5.8259]
[1747557723609,60.22,171.63,171.54,1.45707274]
[1747557723814,120.44,171.63,171.55,3.40157274]
[1747557724010,120.44,171.63,171.56,3.30067274]
[1747557724219,120.44,171.63,171.62,5.825]
[1747557724610,60.22,171.63,171.62,5.825]
[1747557725820,60.22,171.64,171.63,5.8246]
[1747557726313,60.22,171.66,171.63,5.8246]
[1747557726614,60.2,171.65,171.63,5.8246]
[1747557727212,60.2,171.65,171.62,5.8248]
[1747557727918,60.2,171.65,171.58,4.86161512]
[1747557728712,4.99970303,171.64,171.58,4.86161512]
[1747557728911,5.8257,171.6,171.58,4.86161512]
[1747557729113,60.2,171.59,171.58,4.86161512]
[1747557729418,60.2,171.59,171.57,5.8265]
[1747557730216,66.0261,171.59,171.56,5.827]
[1747557731016,60.2,171.59,171.52,1.9306]
[1747557731222,60.2,171.59,171.53,1.45718827]
[1747557731521,60.2,171.59,171.54,1.45718827]
[1747557731721,60.2,171.59,171.52,1.9306]
[1747557731722,60.2,171.59,171.55,1.45718827]
[1747557731923,60.2,171.59,171.52,1.9306]
[1747557732224,60.2,171.59,171.53,1.45716205]
[1747557732422,60.2,171.59,171.54,1.45716205]
[1747557732621,60.2,171.59,171.57,5.8264]
[1747557733018,66.026,171.59,171.52,1.9306]
[1747557733221,60.2,171.59,171.53,1.4571878]
[1747557733423,60.2,171.59,171.54,1.4571878]
[1747557733622,60.2,171.59,171.55,1.4571878]
[1747557733924,60.2,171.59,171.52,1.9306]
[1747557734119,60.2,171.59,171.53,1.45722784]
[1747557734424,66.0261,171.59,171.54,6.32578308]
[1747557734620,66.0261,171.59,171.54,4.86855524]
[1747557734823,60.2,171.59,171.54,4.86855524]
[1747557735028,60.2,171.59,171.55,1.45722808]
[1747557735226,60.2,171.59,171.54,4.86855524]
[1747557735623,60.2,171.59,171.55,4.86855524]
[1747557735926,5.8268,171.57,171.55,4.86855524]
[1747557737329,5.8268,171.57,171.51,5.37485173]
[1747557738321,5.8268,171.57,171.54,5.8276]
[1747557740725,60.2,171.59,171.54,5.8276]
[1747557741127,5.827,171.56,171.53,5.8279]
[1747557742026,5.8268,171.57,171.54,5.8276]
[1747557744925,60.2,171.59,171.47,3.8077]
[1747557745129,4.99970303,171.58,171.49,1.45748766]
[1747557745329,60.2,171.59,171.51,4.87620249]
[1747557746633,5.8272,171.56,171.53,5.828]
[1747557746836,120.36,171.55,171.53,5.828]
[1747557747336,126.1876,171.55,171.52,5.8282]
[1747557750035,5.8277,171.54,171.51,5.8286]
[1747557751333,126.1875,171.55,171.52,5.8283]
[1747557753938,120.36,171.55,171.53,5.828]
[1747557754438,120.36,171.55,171.52,5.8282]
[1747557754836,126.1875,171.55,171.52,5.8282]
[1747557756439,126.1875,171.55,171.53,5.828]
[1747557756633,126.1875,171.55,171.49,1.45755044]
[1747557756830,17.5,171.49,171.4,4.71550346]
[1747557757033,5.01531084,171.44,171.4,4.71550346]
[1747557757233,5.8321,171.41,171.4,4.71550346]
[1747557758236,126.6521,171.41,171.4,4.71550346]
[1747557760441,5.8321,171.41,171.4,4.71550346]
[1747557760642,126.5921,171.41,171.4,4.71550346]
[1747557761843,65.9721,171.41,171.4,4.71550346]
[1747557762045,120.76,171.46,171.4,4.71550346]
[1747557762231,120.76,171.46,171.41,5.832]
[1747557762437,5.8311,171.45,171.41,5.832]
[1747557763244,120.76,171.49,171.43,5.8313]
[1747557763443,60.14,171.48,171.43,5.8313]
[1747557763747,5.8304,171.47,171.43,5.8313]
[1747557764248,65.9698,171.48,171.44,5.831]
[1747557764444,60.14,171.48,171.44,5.831]
[1747557765547,5.8301,171.47,171.44,5.831]
[1747557765747,60.14,171.48,171.44,5.831]
[1747557765949,120.78,171.48,171.44,5.831]
[1747557766247,5.83,171.48,171.44,5.831]
[1747557766448,65.97,171.48,171.44,5.831]
[1747557767245,60.14,171.48,171.41,4.75860354]
[1747557767441,5.01531084,171.52,171.41,4.75860354]
[1747557767641,120.72,171.49,171.41,4.75860354]
[1747557767844,126.5497,171.49,171.44,5.8308]
[1747557768448,5.8299,171.48,171.44,5.8308]
[1747557768645,120.72,171.49,171.43,5.8313]
[1747557768849,120.72,171.49,171.39,120.84]
[1747557769049,5.8298,171.48,171.39,120.84]
[1747557769945,5.01531084,171.47,171.4,5.8322]
[1747557770139,5.01531084,171.47,171.38,3.7849]
[1747557770449,5.8308,171.45,171.41,5.832]
[1747557770747,65.9708,171.45,171.41,5.832]
[1747557771653,5.8312,171.44,171.41,5.832]
[1747557771846,5.8312,171.44,171.4,5.8324]
[1747557772447,5.8314,171.43,171.4,5.8324]
[1747557772749,5.8314,171.43,171.39,5.8327]
[1747557773150,5.8322,171.41,171.38,9.6179]
[1747557773648,121.6,171.41,171.33,121.62]
[1747557774039,121.6,171.41,171.37,5.8332]
[1747557774651,127.4323,171.41,171.37,5.8332]
[1747557774852,127.4323,171.41,171.38,5.8331]
[1747557775652,5.8324,171.4,171.37,5.8334]
[1747557775854,121.6,171.41,171.33,60.14]
[1747557776048,121.6,171.41,171.31,63.2479]
[1747557776249,5.8327,171.4,171.37,5.8334]
[1747557776449,121.6,171.41,171.31,63.2479]
[1747557776650,5.01531084,171.44,171.31,63.2479]
[1747557776950,121.48,171.43,171.31,63.2479]
[1747557777158,5.01531084,171.44,171.31,63.2479]
[1747557777458,5.01531084,171.44,171.41,5.8318]
[1747557777662,126.47531084,171.44,171.41,5.8318]
[1747557778357,126.47531084,171.44,171.42,5.8316]
[1747557778555,121.46,171.44,171.42,5.8316]
[1747557778756,5.01531084,171.47,171.42,5.8316]
[1747557778962,121.42,171.46,171.42,5.8316]
[1747557779564,5.8308,171.45,171.42,5.8316]
[1747557780365,5.8308,171.45,171.41,5.8319]
[1747557780565,5.8311,171.44,171.41,5.8319]
[1747557780965,5.8317,171.43,171.4,5.8324]
[1747557782362,121.26,171.42,171.38,5.833]
[1747557782560,121.26,171.42,171.36,3.8527]
[1747557783463,121.26,171.42,171.32,121.26]
[1747557783669,5.01531084,171.41,171.32,125.2553]
[1747557784369,5.8329,171.39,171.36,5.8335]
[1747557785863,5.8329,171.39,171.37,5.8334]
[1747557786064,5.8326,171.4,171.37,5.8334]
[1747557786270,5.01531084,171.41,171.37,5.8334]
[1747557786573,5.01531084,171.41,171.32,64.1553]
[1747557787473,5.01531084,171.41,171.32,3.9953]
[1747557788466,121.26,171.42,171.32,3.9953]
[1747557788671,5.01531084,171.38,171.32,3.9953]
[1747557788874,122.6,171.37,171.32,3.9953]
[1747557789076,5.834,171.36,171.33,5.8346]
[1747557789469,122.6,171.37,171.32,3.9953]
[1747557789669,5.8342,171.35,171.32,9.8302]
[1747557789871,122.6,171.37,171.32,3.9953]
[1747557790270,5.834,171.36,171.33,5.8348]
[1747557791077,128.4335,171.37,171.34,5.8343]
[1747557791276,122.6,171.37,171.32,3.9953]
[1747557792177,122.6,171.37,171.34,5.8344]
[1747557793077,122.6,171.37,171.32,3.9953]
[1747557793374,5.01531084,171.4,171.32,3.9953]
[1747557793578,122.42,171.39,171.32,3.9953]
[1747557794378,128.2529,171.39,171.32,3.9953]
[1747557794585,122.42,171.39,171.32,3.9953]
[1747557795079,22.5186985,171.33,171.1,21.88639318]
[1747557795283,5.02443735,171.26,171.17,3.7925]
[1747557795482,61.06,171.25,171.17,3.7925]
[1747557796279,336.12,171.32,171.17,3.7925]
[1747557796280,336.12,171.32,171.2,61.3]
[1747557796474,61.34,171.31,171.17,3.7925]
[1747557796680,61.34,171.31,171.24,3.9565]
[1747557796984,5.8375,171.26,171.22,7.7663]
[1747557797779,61.32,171.29,171.2,61.3]
[1747557798084,5.02443735,171.27,171.18,61.34]
[1747557798384,61.34,171.26,171.18,61.34]
[1747557798690,5.8382,171.24,171.2,5.8389]
[1747557799584,5.8382,171.23,171.2,5.8389]
[1747557800181,61.34,171.26,171.17,65.2565]
[1747557800573,61.34,171.26,171.17,3.9565]
[1747557801083,61.34,171.26,171.23,5.838]
[1747557801285,5.837,171.27,171.23,5.838]
[1747557801476,336.12,171.32,171.2,61.26]
[1747557801676,249.21302426,171.33,171.2,61.26]
[1747557802183,5.8359,171.3,171.26,5.8369]
[1747557802376,5.8359,171.3,171.2,61.26]
[1747557802570,5.8359,171.3,171.17,3.9565]
[1747557802776,5.02443735,171.3,171.18,122.72]
[1747557802977,61.36,171.29,171.19,61.36]
[1747557803484,61.36,171.29,171.17,3.9565]
[1747557803679,61.36,171.29,171.18,122.7]
[1747557804187,5.02443735,171.27,171.17,3.9565]
[1747557804383,5.02443735,171.24,171.17,3.9565]
[1747557805185,10.86263735,171.24,171.2,5.839]
[1747557805385,5.8382,171.24,171.2,5.839]
[1747557805585,61.36,171.25,171.17,3.9565]
[1747557805885,5.8381,171.24,171.2,5.8391]
[1747557806983,61.36,171.25,171.17,3.9565]
[1747557807176,5.02443735,171.29,171.17,3.9565]
[1747557807486,5.8371,171.27,171.24,5.8378]
[1747557808085,122.74,171.28,171.24,5.8378]
[1747557808386,5.8371,171.27,171.23,5.8381]
[1747557808586,122.74,171.28,171.23,5.8381]
[1747557809587,5.8373,171.26,171.23,5.8381]
[1747557809786,122.74,171.28,171.22,5.8385]
[1747557810087,5.8376,171.25,171.22,5.8385]
[1747557810589,122.74,171.28,171.21,5.8389]
[1747557810788,5.8381,171.24,171.21,5.8389]
[1747557810986,67.1981,171.24,171.21,5.8389]
[1747557812493,5.8384,171.23,171.19,5.8393]
[1747557812794,122.74,171.24,171.17,3.9565]
[1747557813094,5.8384,171.23,171.2,5.8389]
[1747557814297,128.578,171.24,171.21,5.8389]
[1747557814988,5.8384,171.23,171.2,5.8392]
[1747557815190,122.74,171.24,171.17,3.9565]
[1747557815591,5.8389,171.21,171.18,5.8397]
[1747557815792,122.74,171.24,171.15,1.9278]
[1747557817194,5.8386,171.22,171.19,5.8394]
[1747557817387,122.74,171.24,171.15,1.9278]
[1747557818396,5.8388,171.22,171.19,5.8396]
[1747557819298,5.8383,171.23,171.2,5.8392]
[1747557819699,122.74,171.24,171.15,1.9278]
[1747557819996,128.5782,171.24,171.15,1.9278]
[1747557820397,128.5782,171.24,171.21,5.8388]
[1747557821101,122.74,171.24,171.22,5.8385]
[1747557822298,128.5779,171.24,171.22,5.8385]
[1747557822497,128.5779,171.24,171.21,5.8388]
[1747557822698,128.5779,171.24,171.15,1.9278]
[1747557823698,122.74,171.24,171.15,1.9278]
[1747557824397,128.5779,171.24,171.21,5.8387]
[1747557824594,5.8379,171.24,171.21,5.8387]
[1747557824798,61.04,171.24,171.15,1.9278]
[1747557825002,66.8779,171.24,171.21,5.8386]
[1747557825200,61.04,171.24,171.15,1.9278]
[1747557825602,61.04,171.24,171.23,5.8382]
[1747557826103,61.04,171.24,171.22,5.8384]
[1747557826399,61.04,171.24,171.16,61.22]
[1747557826698,5.8384,171.23,171.16,61.22]
[1747557828098,5.8384,171.23,171.2,5.8392]
[1747557829702,5.8386,171.22,171.19,5.8395]
[1747557829899,61.04,171.24,171.16,61.22]
[1747557830206,5.8386,171.23,171.19,5.8394]
[1747557830407,5.8386,171.23,171.16,61.22]
[1747557830604,61.04,171.24,171.16,61.22]
[1747557830806,5.8386,171.22,171.19,5.8393]
[1747557834716,5.8384,171.23,171.2,5.8392]
[1747557835719,66.878,171.24,171.21,5.8389]
[1747557837426,61.22,171.25,171.16,61.22]
[1747557837721,121.8,171.25,171.16,61.22]
[1747557837924,5.8379,171.24,171.21,5.8387]
[1747557840418,127.6377,171.25,171.22,5.8385]
[1747557841022,121.8,171.25,171.23,5.838]
[1747557841323,61.22,171.25,171.16,61.22]
[1747557842217,67.0578,171.25,171.16,61.22]
[1747557842623,61.22,171.25,171.16,61.22]
[1747557843624,5.8383,171.23,171.2,5.8391]
[1747557843826,61.22,171.25,171.16,61.22]
[1747557844425,5.8383,171.23,171.2,5.8392]
[1747557844726,61.22,171.25,171.16,61.22]
[1747557845227,5.838,171.24,171.21,5.8386]
[1747557845928,5.838,171.24,171.22,5.8386]
[1747557846123,5.838,171.24,171.16,61.22]
[1747557846427,5.838,171.24,171.21,5.8387]
[1747557850027,5.8385,171.23,171.17,5.3619072]
[1747557850230,61.22,171.25,171.17,5.3619072]
[1747557850823,5.8384,171.23,171.2,5.839]
[1747557851025,66.1784,171.23,171.2,5.839]
[1747557851224,60.34,171.23,171.2,5.839]
[1747557851634,5.8388,171.22,171.19,5.8395]
[1747557852027,60.34,171.23,171.17,5.3619072]
[1747557852228,66.1785,171.23,171.2,5.839]
[1747557853333,5.8386,171.22,171.2,5.839]
[1747557853934,5.8381,171.24,171.21,5.8389]
[1747557854232,120.74,171.24,171.16,61.22]
[1747557854835,5.8383,171.23,171.2,5.839]
[1747557857036,5.8383,171.23,171.21,5.8388]
[1747557857835,120.74,171.24,171.23,5.8382]
[1747557858035,7.23695351,171.27,171.18,60.34]
[1747557858231,7.23695351,171.27,171.19,3.7452]